fUST/lending_fUST_20240613
["ID","MTS","AMOUNT","RATE_DAILY","PERIOD"]
[329296312,1718223046843,-500.0,0.00016438,2]
[329296314,1718223046854,-276.16,0.00016438,2]
[329296316,1718223046869,-500.0,0.00016438,2]
[329296318,1718223046880,-500.0,0.00016438,2]
[329296320,1718223046890,-500.0,0.00016438,2]
[329296323,1718223046906,-638.9216037,0.00016438,2]
[329296325,1718223046916,-278.19844218,0.00016438,2]
[329296355,1718223047416,-221.80155782,0.00016438,2]
[329296357,1718223047429,-500.0,0.00016438,2]
[329296359,1718223047442,-500.0,0.00016438,2]
[329296361,1718223047458,-500.0,0.00016438,2]
[329296363,1718223047477,-530.5829225,0.00016438,2]
[329296364,1718223047493,-500.0,0.00016438,2]
[329296367,1718223047513,-503.36417828,0.00016438,2]
[329296369,1718223047532,-500.0,0.00016438,2]
[329296371,1718223047548,-297.70877243,0.00016438,2]
[329296373,1718223047569,-202.29122757,0.00016438,2]
[329296375,1718223047589,-500.0,0.00016438,2]
[329296378,1718223047622,-538.58,0.00016438,2]
[329296380,1718223047640,-500.0,0.00016438,2]
[329296384,1718223047662,-1006.47,0.00016438,2]
[329296385,1718223047680,-500.0,0.00016438,2]
[329296387,1718223047693,-500.0,0.00016438,2]
[329296389,1718223047704,-500.0,0.00016438,2]
[329296391,1718223047717,-500.0,0.00016438,2]
[329296392,1718223047734,-213.81477098,0.00016438,2]
[329296394,1718223047759,-286.18522902,0.00016438,2]
[329296396,1718223047774,-500.0,0.00016438,2]
[329296398,1718223047788,-500.0,0.00016438,2]
[329296400,1718223047802,-500.0,0.00016438,2]
[329296401,1718223047830,-243.42966004,0.00016438,2]
[329296404,1718223047848,-256.57033996,0.00016438,2]
[329296406,1718223047861,-694.93,0.00016438,2]
[329296409,1718223047891,-500.0,0.00016438,2]
[329296410,1718223047912,-500.0,0.00016438,2]
[329296412,1718223047925,-500.0,0.00016438,2]
[329296414,1718223047941,-500.0,0.00016438,2]
[329296416,1718223047957,-500.0,0.00016438,2]
[329296418,1718223047991,-569.95969663,0.00016438,2]
[329296419,1718223048009,-500.0,0.00016438,2]
[329296421,1718223048031,-500.0,0.00016438,2]
[329296424,1718223048069,-500.0,0.00016438,2]
[329296426,1718223048093,-500.0,0.00016438,2]
[329296427,1718223048106,-500.0,0.00016438,2]
[329296429,1718223048118,-500.0,0.00016438,2]
[329296430,1718223048132,-500.0,0.00016438,2]
[329296432,1718223048153,-579.45,0.00016438,2]
[329296434,1718223048195,-500.0,0.00016438,2]
[329296435,1718223048212,-1296.14,0.00016438,2]
[329296437,1718223048223,-577.02,0.00016438,2]
[329296439,1718223048239,-500.0,0.00016438,2]
[329296441,1718223048251,-500.0,0.00016438,2]
[329296442,1718223048262,-1066.65,0.00016438,2]
[329296444,1718223048278,-500.0,0.00016438,2]
[329296446,1718223048294,-591.4566365,0.00016438,2]
[329296447,1718223048306,-968.36,0.00016438,2]
[329296450,1718223048328,-200.21540642,0.00016438,2]
[329296451,1718223048340,-500.0,0.00016438,2]
[329296453,1718223048361,-500.0,0.00016438,2]
[329296455,1718223048373,-500.0,0.00016438,2]
[329296458,1718223048398,-500.0,0.00016438,2]
[329296460,1718223048412,-586.92,0.00016438,2]
[329296462,1718223048428,-415.75723587,0.00016438,2]
[329296464,1718223048439,-500.0,0.00016438,2]
[329296465,1718223048451,-500.0,0.00016438,2]
[329296467,1718223048462,-1019.85,0.00016438,2]
[329296469,1718223048474,-500.0,0.00016438,2]
[329296472,1718223048495,-3235.42,0.00016438,2]
[329296473,1718223048509,-467.6593586,0.00016438,2]
[329296476,1718223048534,-32.3406414,0.00016438,2]
[329296478,1718223048562,-500.0,0.00016438,2]
[329296481,1718223048575,-500.0,0.00016438,2]
[329296483,1718223048593,-500.0,0.00016438,2]
[329296485,1718223048610,-500.0,0.00016438,2]
[329296487,1718223048637,-500.0,0.00016438,2]
[329296490,1718223048667,-500.0,0.00016438,2]
[329296491,1718223048680,-500.0,0.00016438,2]
[329296493,1718223048691,-500.0,0.00016438,2]
[329296494,1718223048704,-500.0,0.00016438,2]
[329296496,1718223048716,-500.0,0.00016438,2]
[329296498,1718223048741,-4072.76,0.00016438,2]
[329296500,1718223048775,-4283.83473692,0.00016438,2]
[329296502,1718223048814,-908.38526308,0.00016438,2]
[329296504,1718223048837,-550.4,0.00016438,2]
[329296505,1718223048848,-500.0,0.00016438,2]
[329296507,1718223048859,-510.84947858,0.00016438,2]
[329296509,1718223048870,-617.46,0.00016438,2]
[329296511,1718223048882,-735.69,0.00016438,2]
[329296513,1718223048892,-1485.23,0.00016438,2]
[329296515,1718223048903,-500.0,0.00016438,2]
[329296517,1718223048913,-500.0,0.00016438,2]
[329296519,1718223048924,-2220.78,0.00016438,2]
[329296521,1718223048934,-500.0,0.00016438,2]
[329296523,1718223048945,-500.0,0.00016438,2]
[329296525,1718223048958,-500.0,0.00016438,2]
[329296527,1718223048970,-584.15,0.00016438,2]
[329296529,1718223048991,-538.72,0.00016438,2]
[329296531,1718223049003,-2648.5,0.00016438,2]
[329296533,1718223049016,-4371.65,0.00016438,2]
[329296536,1718223049034,-500.0,0.00016438,2]
[329296538,1718223049046,-500.0,0.00016438,2]
[329296541,1718223049063,-500.0,0.00016438,2]
[329296544,1718223049106,-500.0,0.00016438,2]
[329296546,1718223049118,-500.0,0.00016438,2]
[329296548,1718223049133,-250.0353335,0.00016438,2]
[329296550,1718223049147,-570.29,0.00016438,2]
[329296552,1718223049162,-500.0,0.00016438,2]
[329296554,1718223049179,-500.0,0.00016438,2]
[329296556,1718223049193,-500.0,0.00016438,2]
[329296557,1718223049204,-500.0,0.00016438,2]
[329296560,1718223049232,-500.0,0.00016438,2]
[329296562,1718223049245,-500.0,0.00016438,2]
[329296564,1718223049266,-500.0,0.00016438,2]
[329296567,1718223049293,-565.74,0.00016438,2]
[329296569,1718223049306,-500.0,0.00016438,2]
[329296571,1718223049316,-500.0,0.00016438,2]
[329296573,1718223049333,-500.0,0.00016438,2]
[329296575,1718223049345,-934.62,0.00016438,2]
[329296577,1718223049355,-500.0,0.00016438,2]
[329296579,1718223049366,-500.0,0.00016438,2]
[329296581,1718223049378,-500.0,0.00016438,2]
[329296582,1718223049389,-500.0,0.00016438,2]
[329296584,1718223049400,-504.82996224,0.00016438,2]
[329296587,1718223049410,-588.09,0.00016438,2]
[329296589,1718223049423,-157.28527218,0.00016612,2]
[329296591,1718223049441,-500.0,0.00016711,2]
[329296593,1718223049452,-500.0,0.00016711,2]
[329296595,1718223049462,-500.0,0.00016712,2]
[329296597,1718223049474,-500.0,0.00016712,2]
[329296599,1718223049489,-500.0,0.00016712,2]
[329296601,1718223049499,-500.0,0.00016712,4]
[329296603,1718223049513,-500.0,0.00016712,2]
[329296605,1718223049527,-545.47,0.00016712,2]
[329296607,1718223049537,-500.0,0.00016712,2]
[329296609,1718223049554,-546.8,0.00016712,2]
[329296611,1718223049569,-500.0,0.00016712,2]
[329296613,1718223049586,-500.0,0.00016712,2]
[329296615,1718223049596,-500.0,0.00016712,2]
[329296617,1718223049609,-603.17,0.00016712,2]
[329296619,1718223049620,-500.0,0.00016712,2]
[329296621,1718223049631,-500.0,0.00016712,2]
[329296623,1718223049641,-500.0,0.00016712,2]
[329296625,1718223049652,-500.0,0.00016712,2]
[329296627,1718223049662,-595.250067,0.00016712,2]
[329296629,1718223049673,-500.0,0.00016712,2]
[329296631,1718223049683,-500.0,0.00016712,2]
[329296633,1718223049693,-538.58,0.00016712,2]
[329296635,1718223049704,-500.0,0.00016712,2]
[329296637,1718223049714,-1006.47,0.00016712,2]
[329296639,1718223049724,-500.0,0.00016712,2]
[329296641,1718223049740,-500.0,0.00016712,2]
[329296642,1718223049750,-507.09911084,0.00016712,2]
[329296645,1718223049792,-500.0,0.00016712,2]
[329296646,1718223049805,-500.0,0.00016712,2]
[329296648,1718223049844,-500.0,0.00016712,2]
[329296650,1718223049856,-345.06273923,0.00016712,2]
[329296652,1718223049868,-694.93,0.00016712,2]
[329296655,1718223049888,-500.0,0.00016712,2]
[329296657,1718223049899,-500.0,0.00016712,2]
[329296659,1718223049912,-500.0,0.00016712,2]
[329296661,1718223049923,-500.0,0.00016712,2]
[329296663,1718223049935,-500.0,0.00016712,2]
[329296665,1718223049946,-500.0,0.00016712,2]
[329296667,1718223049957,-500.0,0.00016712,2]
[329296669,1718223049967,-500.0,0.00016712,2]
[329296671,1718223049978,-1296.14,0.00016712,2]
[329296673,1718223049990,-577.02,0.00016712,2]
[329296674,1718223050000,-500.0,0.00016712,2]
[329296676,1718223050011,-500.0,0.00016712,2]
[329296678,1718223050021,-1066.65,0.00016712,2]
[329296681,1718223050032,-968.36,0.00016712,2]
[329296683,1718223050043,-500.0,0.00016712,2]
[329296685,1718223050053,-500.0,0.00016712,2]
[329296686,1718223050064,-500.0,0.00016712,2]
[329296689,1718223050074,-500.0,0.00016712,2]
[329296691,1718223050086,-1019.85,0.00016712,2]
[329296692,1718223050096,-500.0,0.00016712,2]
[329296695,1718223050107,-3235.42,0.00016712,2]
[329296697,1718223050119,-500.0,0.00016712,2]
[329296698,1718223050130,-500.0,0.00016712,2]
[329296700,1718223050142,-222.37017065,0.00016712,2]
[329296702,1718223050156,-500.0,0.00016712,2]
[329296704,1718223050167,-500.0,0.00016712,2]
[329296706,1718223050179,-500.0,0.00016712,2]
[329296708,1718223050190,-4072.76,0.00016712,2]
[329296710,1718223050201,-5192.22,0.00016712,2]
[329296712,1718223050211,-550.4,0.00016712,2]
[329296714,1718223050223,-500.0,0.00016712,2]
[329296716,1718223050238,-617.46,0.00016712,2]
[329296718,1718223050253,-735.69,0.00016712,2]
[329296720,1718223050265,-1485.23,0.00016712,2]
[329296722,1718223050275,-500.0,0.00016712,2]
[329296724,1718223050288,-500.0,0.00016712,2]
[329296727,1718223050300,-2220.78,0.00016712,2]
[329296729,1718223050311,-500.0,0.00016712,2]
[329296730,1718223050323,-500.0,0.00016712,2]
[329296732,1718223050333,-584.15,0.00016712,2]
[329296734,1718223050345,-538.72,0.00016712,2]
[329296737,1718223050358,-2648.5,0.00016712,2]
[329296739,1718223050369,-4371.65,0.00016712,2]
[329296741,1718223050381,-500.0,0.00016712,2]
[329296743,1718223050395,-500.0,0.00016712,2]
[329296745,1718223050406,-500.0,0.00016712,2]
[329296747,1718223050419,-500.0,0.00016712,2]
[329296749,1718223050430,-570.29,0.00016712,2]
[329296751,1718223050443,-500.0,0.00016712,2]
[329296753,1718223050454,-500.0,0.00016712,2]
[329296755,1718223050465,-500.0,0.00016712,2]
[329296757,1718223050475,-500.0,0.00016712,2]
[329296759,1718223050488,-565.74,0.00016712,2]
[329296761,1718223050498,-508.74057933,0.00016712,2]
[329296763,1718223050508,-500.0,0.00016712,2]
[329296765,1718223050519,-500.0,0.00016712,2]
[329296767,1718223050532,-934.62,0.00016712,2]
[329296769,1718223050543,-500.0,0.00016712,2]
[329296771,1718223050553,-500.0,0.00016712,2]
[329296773,1718223050564,-500.0,0.00016712,2]
[329296774,1718223050575,-588.09,0.00016712,2]
[329296776,1718223050589,-2000.0,0.00016886,2]
[329296778,1718223050603,-500.0,0.00016985,2]
[329296780,1718223050614,-24685.79251639,0.00016986,15]
[329296782,1718223050625,-500.0,0.00016986,2]
[329296784,1718223050636,-500.0,0.00016986,2]
[329296786,1718223050647,-500.0,0.00016986,2]
[329296788,1718223050658,-535.66,0.00016986,4]
[329296790,1718223050669,-585.20178066,0.00016986,2]
[329296792,1718223050680,-545.47,0.00016986,2]
[329296794,1718223050691,-500.0,0.00016986,2]
[329296796,1718223050702,-546.8,0.00016986,2]
[329296798,1718223050712,-500.0,0.00016986,2]
[329296800,1718223050723,-500.0,0.00016986,2]
[329296802,1718223050735,-500.0,0.00016986,2]
[329296804,1718223050746,-603.17,0.00016986,2]
[329296806,1718223050757,-500.0,0.00016986,2]
[329296808,1718223050767,-500.0,0.00016986,2]
[329296810,1718223050777,-500.0,0.00016986,2]
[329296812,1718223050788,-500.0,0.00016986,2]
[329296814,1718223050799,-500.0,0.00016986,2]
[329296816,1718223050822,-500.0,0.00016986,2]
[329296818,1718223050834,-538.58,0.00016986,2]
[329296820,1718223050845,-1006.47,0.00016986,2]
[329296822,1718223050855,-500.0,0.00016986,2]
[329296824,1718223050866,-500.0,0.00016986,2]
[329296826,1718223050877,-510.30905643,0.00016986,2]
[329296828,1718223050888,-500.0,0.00016986,2]
[329296830,1718223050900,-500.0,0.00016986,2]
[329296832,1718223050910,-694.93,0.00016986,2]
[329296834,1718223050922,-500.0,0.00016986,2]
[329296836,1718223050933,-500.0,0.00016986,2]
[329296838,1718223050944,-308.01027872,0.00016986,2]
[329296840,1718223050954,-500.0,0.00016986,2]
[329296842,1718223050965,-500.0,0.00016986,2]
[329296844,1718223050979,-154.1118477,0.00016986,2]
[329296846,1718223050994,-500.0,0.00016986,2]
[329296848,1718223051006,-1296.14,0.00016986,2]
[329296850,1718223051017,-577.02,0.00016986,2]
[329296852,1718223051027,-500.0,0.00016986,2]
[329296854,1718223051037,-500.0,0.00016986,2]
[329296856,1718223051047,-1066.65,0.00016986,2]
[329296858,1718223051058,-968.36,0.00016986,2]
[329296860,1718223051068,-500.0,0.00016986,2]
[329296862,1718223051078,-500.0,0.00016986,2]
[329296864,1718223051088,-500.0,0.00016986,2]
[329296866,1718223051100,-500.0,0.00016986,2]
[329296868,1718223051112,-1019.85,0.00016986,2]
[329296870,1718223051123,-500.0,0.00016986,2]
[329296873,1718223051135,-3235.42,0.00016986,2]
[329296875,1718223051145,-500.0,0.00016986,2]
[329296877,1718223051155,-500.0,0.00016986,2]
[329296879,1718223051166,-500.0,0.00016986,2]
[329296881,1718223051176,-4072.76,0.00016986,2]
[329296883,1718223051186,-5192.22,0.00016986,2]
[329296885,1718223051196,-550.4,0.00016986,2]
[329296887,1718223051208,-500.0,0.00016986,2]
[329296889,1718223051218,-617.46,0.00016986,2]
[329296891,1718223051229,-735.69,0.00016986,2]
[329296893,1718223051243,-1485.23,0.00016986,2]
[329296895,1718223051252,-341.9,0.00016986,2]
[329296896,1718223051264,-500.0,0.00016986,2]
[329296898,1718223051275,-2220.78,0.00016986,2]
[329296900,1718223051285,-500.0,0.00016986,2]
[329296902,1718223051296,-500.0,0.00016986,2]
[329296904,1718223051307,-584.15,0.00016986,2]
[329296906,1718223051317,-538.72,0.00016986,2]
[329296907,1718223051327,-2648.5,0.00016986,2]
[329296908,1718223051340,-4371.65,0.00016986,2]
[329296909,1718223051350,-500.0,0.00016986,2]
[329296910,1718223051360,-533.99067711,0.00016986,2]
[329296911,1718223051371,-500.0,0.00016986,2]
[329296912,1718223051382,-570.29,0.00016986,2]
[329296913,1718223051392,-500.0,0.00016986,2]
[329296914,1718223051402,-500.0,0.00016986,2]
[329296915,1718223051412,-500.0,0.00016986,2]
[329296916,1718223051422,-565.74,0.00016986,2]
[329296917,1718223051432,-500.0,0.00016986,2]
[329296919,1718223051443,-934.62,0.00016986,2]
[329296921,1718223051453,-500.0,0.00016986,2]
[329296923,1718223051464,-500.0,0.00016986,2]
[329296925,1718223051474,-500.0,0.00016986,2]
[329296927,1718223051485,-500.0,0.00016986,2]
[329296929,1718223051495,-588.09,0.00016986,2]
[329296931,1718223051507,-361.09815163,0.000171,2]
[329296933,1718223051520,-361.09815163,0.000171,2]
[329296935,1718223051531,-361.09815163,0.000171,2]
[329296937,1718223051542,-361.09815163,0.000171,2]
[329296940,1718223051566,-361.09815163,0.000171,2]
[329296942,1718223051579,-361.09815163,0.000171,2]
[329296943,1718223051594,-361.09815163,0.000171,2]
[329296945,1718223051605,-361.09815163,0.000171,2]
[329296947,1718223051617,-361.09815163,0.000171,2]
[329296949,1718223051630,-361.09815163,0.000171,2]
[329296952,1718223051642,-361.09815163,0.000171,2]
[329296954,1718223051653,-361.09815163,0.000171,2]
[329296956,1718223051664,-361.09815163,0.000171,2]
[329296958,1718223051674,-361.09815163,0.000171,2]
[329296960,1718223051685,-361.09815163,0.000171,2]
[329296962,1718223051695,-361.09815163,0.000171,2]
[329296964,1718223051705,-361.09815163,0.000171,2]
[329296966,1718223051720,-361.09815163,0.000171,2]
[329296968,1718223051733,-361.09815163,0.000171,2]
[329296970,1718223051744,-361.09815,0.000171,2]
[329296972,1718223051754,-500.0,0.00017259,2]
[329296974,1718223051764,-500.0,0.00017259,2]
[329296976,1718223051775,-500.0,0.0001726,2]
[329296977,1718223051788,-500.0,0.0001726,2]
[329296988,1718223051922,-500.0,0.0001726,2]
[329296990,1718223051939,-545.47,0.0001726,2]
[329296992,1718223051949,-500.0,0.0001726,2]
[329296994,1718223051960,-546.8,0.0001726,2]
[329296996,1718223051970,-500.0,0.0001726,2]
[329296998,1718223051981,-500.0,0.0001726,2]
[329297000,1718223051996,-500.0,0.0001726,2]
[329297002,1718223052017,-603.17,0.0001726,2]
[329297005,1718223052040,-500.0,0.0001726,2]
[329297007,1718223052052,-500.0,0.0001726,2]
[329297009,1718223052062,-500.0,0.0001726,2]
[329297011,1718223052073,-500.0,0.0001726,2]
[329297013,1718223052085,-164.3,0.0001726,2]
[329297015,1718223052096,-500.0,0.0001726,2]
[329297017,1718223052107,-538.58,0.0001726,2]
[329297019,1718223052117,-1006.47,0.0001726,2]
[329297021,1718223052137,-500.0,0.0001726,2]
[329297023,1718223052149,-500.0,0.0001726,2]
[329297025,1718223052161,-500.0,0.0001726,2]
[329297027,1718223052177,-694.93,0.0001726,2]
[329297029,1718223052187,-500.0,0.0001726,2]
[329297031,1718223052198,-500.0,0.0001726,2]
[329297033,1718223052209,-500.0,0.0001726,2]
[329297035,1718223052222,-500.0,0.0001726,2]
[329297037,1718223052244,-500.0,0.0001726,2]
[329297040,1718223052262,-1296.14,0.0001726,2]
[329297042,1718223052273,-577.02,0.0001726,2]
[329297044,1718223052290,-500.0,0.0001726,2]
[329297046,1718223052302,-500.0,0.0001726,2]
[329297048,1718223052315,-1066.65,0.0001726,2]
[329297050,1718223052326,-968.36,0.0001726,2]
[329297052,1718223052339,-500.0,0.0001726,2]
[329297054,1718223052355,-500.0,0.0001726,2]
[329297056,1718223052378,-500.0,0.0001726,2]
[329297058,1718223052415,-295.05,0.0001726,2]
[329297059,1718223052440,-1019.85,0.0001726,2]
[329297061,1718223052471,-500.0,0.0001726,2]
[329297063,1718223052488,-3235.42,0.0001726,2]
[329297066,1718223052507,-500.0,0.0001726,2]
[329297067,1718223052533,-500.0,0.0001726,2]
[329297069,1718223052545,-500.0,0.0001726,2]
[329297070,1718223052556,-4072.76,0.0001726,2]
[329297072,1718223052573,-5192.22,0.0001726,2]
[329297074,1718223052588,-550.4,0.0001726,2]
[329297076,1718223052602,-500.0,0.0001726,2]
[329297078,1718223052613,-617.46,0.0001726,2]
[329297081,1718223052625,-735.69,0.0001726,2]
[329297083,1718223052641,-1485.23,0.0001726,2]
[329297085,1718223052653,-500.0,0.0001726,2]
[329297087,1718223052667,-2220.78,0.0001726,2]
[329297089,1718223052677,-293.95,0.0001726,2]
[329297090,1718223052691,-500.0,0.0001726,2]
[329297091,1718223052702,-584.15,0.0001726,2]
[329297092,1718223052713,-538.72,0.0001726,2]
[329297093,1718223052724,-2648.5,0.0001726,2]
[329297094,1718223052737,-4371.65,0.0001726,2]
[329297095,1718223052752,-500.0,0.0001726,2]
[329297096,1718223052764,-500.0,0.0001726,2]
[329297097,1718223052775,-570.29,0.0001726,2]
[329297098,1718223052786,-500.0,0.0001726,2]
[329297099,1718223052798,-500.0,0.0001726,2]
[329297101,1718223052822,-500.0,0.0001726,2]
[329297103,1718223052843,-565.74,0.0001726,2]
[329297105,1718223052854,-500.0,0.0001726,2]
[329297106,1718223052865,-934.62,0.0001726,2]
[329297108,1718223052876,-249.21061859,0.0001726,2]
[329297110,1718223052888,-500.0,0.0001726,2]
[329297112,1718223052899,-500.0,0.0001726,2]
[329297114,1718223052911,-500.0,0.0001726,2]
[329297116,1718223052923,-588.09,0.0001726,2]
[329297118,1718223052934,-644.2457587,0.00017533,2]
[329297120,1718223052946,-500.0,0.00017534,2]
[329297121,1718223052958,-545.47,0.00017534,2]
[329297123,1718223052968,-546.8,0.00017534,2]
[329297125,1718223052978,-500.0,0.00017534,2]
[329297127,1718223052991,-500.0,0.00017534,2]
[329297128,1718223053001,-500.0,0.00017534,2]
[329297130,1718223053013,-603.17,0.00017534,2]
[329297132,1718223053024,-500.0,0.00017534,2]
[329297134,1718223053036,-500.0,0.00017534,2]
[329297136,1718223053048,-500.0,0.00017534,2]
[329297138,1718223053058,-443.64,0.00017534,2]
[329297139,1718223053069,-500.0,0.00017534,2]
[329297141,1718223053080,-538.58,0.00017534,2]
[329297143,1718223053092,-1006.47,0.00017534,2]
[329297145,1718223053103,-500.0,0.00017534,2]
[329297147,1718223053114,-500.0,0.00017534,2]
[329297149,1718223053125,-694.93,0.00017534,2]
[329297151,1718223053136,-500.0,0.00017534,2]
[329297154,1718223053147,-500.0,0.00017534,2]
[329297156,1718223053170,-500.0,0.00017534,2]
[329297158,1718223053181,-294.77567397,0.00017534,2]
[329297160,1718223053193,-500.0,0.00017534,2]
[329297162,1718223053204,-1296.14,0.00017534,2]
[329297164,1718223053215,-577.02,0.00017534,2]
[329297166,1718223053226,-500.0,0.00017534,2]
[329297167,1718223053240,-1066.65,0.00017534,2]
[329297170,1718223053252,-968.36,0.00017534,2]
[329297172,1718223053263,-361.57295176,0.00017534,2]
[329297174,1718223053277,-500.0,0.00017534,2]
[329297176,1718223053289,-500.0,0.00017534,2]
[329297177,1718223053299,-1019.85,0.00017534,2]
[329297179,1718223053310,-484.08,0.00017534,2]
[329297181,1718223053320,-3235.42,0.00017534,2]
[329297183,1718223053331,-500.0,0.00017534,2]
[329297185,1718223053342,-500.0,0.00017534,2]
[329297188,1718223053354,-500.0,0.00017534,2]
[329297190,1718223053365,-4072.76,0.00017534,2]
[329297191,1718223053377,-5192.22,0.00017534,2]
[329297192,1718223053387,-550.4,0.00017534,2]
[329297194,1718223053398,-500.0,0.00017534,2]
[329297196,1718223053409,-617.46,0.00017534,2]
[329297198,1718223053420,-735.69,0.00017534,2]
[329297200,1718223053431,-1485.23,0.00017534,2]
[329297202,1718223053443,-628.83503317,0.00017534,2]
[329297204,1718223053454,-2220.78,0.00017534,2]
[329297206,1718223053465,-500.0,0.00017534,2]
[329297208,1718223053476,-584.15,0.00017534,2]
[329297210,1718223053488,-538.72,0.00017534,2]
[329297212,1718223053499,-2648.5,0.00017534,2]
[329297214,1718223053509,-4371.65,0.00017534,2]
[329297216,1718223053522,-500.0,0.00017534,2]
[329297218,1718223053536,-500.0,0.00017534,2]
[329297220,1718223053546,-570.29,0.00017534,2]
[329297222,1718223053563,-500.0,0.00017534,2]
[329297224,1718223053574,-500.0,0.00017534,2]
[329297226,1718223053587,-565.74,0.00017534,2]
[329297228,1718223053600,-500.0,0.00017534,2]
[329297230,1718223053617,-934.62,0.00017534,2]
[329297232,1718223053628,-500.0,0.00017534,2]
[329297234,1718223053639,-500.0,0.00017534,2]
[329297236,1718223053649,-500.0,0.00017534,2]
[329297238,1718223053659,-588.09,0.00017534,2]
[329297240,1718223053669,-88888.0,0.00017708,2]
[329297242,1718223053680,-300.521695,0.00017725,2]
[329297244,1718223053690,-292.5693121,0.00017725,2]
[329297246,1718223053700,-292.5693121,0.00017725,2]
[329297248,1718223053711,-292.5693121,0.00017725,2]
[329297250,1718223053721,-292.5693121,0.00017725,2]
[329297252,1718223053734,-205.3823407,0.00017727,2]
[329297254,1718223053747,-205.3823407,0.00017727,2]
[329297256,1718223053757,-614.55256211,0.00017808,2]
[329297258,1718223053769,-545.47,0.00017808,2]
[329297260,1718223053779,-546.8,0.00017808,2]
[329297262,1718223053790,-500.0,0.00017808,2]
[329297264,1718223053801,-500.0,0.00017808,2]
[329297267,1718223053837,-500.0,0.00017808,2]
[329297269,1718223053855,-603.17,0.00017808,2]
[329297271,1718223053866,-500.0,0.00017808,2]
[329297273,1718223053877,-500.0,0.00017808,2]
[329297275,1718223053890,-538.58,0.00017808,2]
[329297277,1718223053900,-1006.47,0.00017808,2]
[329297279,1718223053911,-500.0,0.00017808,2]
[329297281,1718223053922,-500.0,0.00017808,2]
[329297283,1718223053933,-694.93,0.00017808,2]
[329297285,1718223053944,-350.79465647,0.00017808,2]
[329297287,1718223053955,-500.0,0.00017808,2]
[329297289,1718223053966,-1296.14,0.00017808,2]
[329297291,1718223053977,-577.02,0.00017808,2]
[329297293,1718223053989,-500.0,0.00017808,2]
[329297295,1718223053999,-1066.65,0.00017808,2]
[329297297,1718223054009,-968.36,0.00017808,2]
[329297299,1718223054019,-500.0,0.00017808,2]
[329297301,1718223054030,-1019.85,0.00017808,2]
[329297303,1718223054041,-3235.42,0.00017808,2]
[329297306,1718223054066,-500.0,0.00017808,2]
[329297308,1718223054082,-500.0,0.00017808,2]
[329297310,1718223054100,-4072.76,0.00017808,2]
[329297312,1718223054114,-550.4,0.00017808,2]
[329297314,1718223054127,-5192.22,0.00017808,2]
[329297317,1718223054142,-500.0,0.00017808,2]
[329297319,1718223054153,-617.46,0.00017808,2]
[329297320,1718223054165,-735.69,0.00017808,2]
[329297322,1718223054180,-1485.23,0.00017808,2]
[329297324,1718223054196,-2220.78,0.00017808,2]